bitfinex/quotes_SOLUSD_20240824
["timestamp","ask_amount","ask_price","bid_price","bid_amount"]
[1724460746383,15.7541,154.13,154.06,32.64195676]
[1724460746989,30.0,154.12,154.04,32.64195676]
[1724460747383,1.62245523,154.11,154.04,32.64195676]
[1724460748005,30.0,154.1,154.04,32.64195676]
[1724460748789,30.0,154.1,154.02,32.64195676]
[1724460748990,30.0,154.1,154.03,45.25098]
[1724460749681,1.62249819,154.09,154.03,45.25098]
[1724460749882,1.62249819,154.09,154.02,32.64195676]
[1724460750218,30.0,154.08,154.03,20.0]
[1724460750905,30.0,154.08,153.97,6.2028]
[1724460750906,15.7541,154.05,153.94,20.8204954]
[1724460751076,15.7541,154.05,153.94,2.33367527]
[1724460751285,30.0,154.03,153.95,6.78576317]
[1724460751511,30.0,154.03,153.96,32.64195676]
[1724460751712,30.0,154.03,153.94,20.8204954]
[1724460751892,15.7541,154.05,153.98,32.64195676]
[1724460752108,17.37711918,154.05,153.98,32.64195676]
[1724460752406,1.62302993,154.04,153.96,32.64195676]
[1724460752611,1.62302993,154.04,153.94,40.24858334]
[1724460752823,1.62302993,154.04,153.94,33.46245216]
[1724460754618,1.62302993,154.04,153.95,0.12549]
[1724460754819,1.62302993,154.04,153.95,45.12549]
[1724460758099,34.26498669,154.04,153.95,45.12549]
[1724460758306,6.6094,154.01,153.94,0.8204954]
[1724460758602,1.62355544,154.0,153.94,0.8204954]
[1724460759003,16.2317,153.99,153.94,0.8204954]
[1724460759205,1.62385237,153.98,153.94,0.8204954]
[1724460760722,34.26580913,153.98,153.94,0.8204954]
[1724460760915,6.6094,153.97,153.94,0.8204954]
[1724460761099,1.62423271,153.96,153.94,0.8204954]
[1724460761300,1.624291,153.95,153.94,0.8204954]
[1724460762543,1.624291,153.95,153.85,32.64195676]
[1724460762898,1.624291,153.95,153.86,20.0]
[1724460763122,32.64195676,153.96,153.86,20.0]
[1724460763335,1.62435379,153.95,153.86,20.0]
[1724460764044,6.6094,153.97,153.89,32.64195676]
[1724460764330,6.6094,153.97,153.9,45.0]
[1724460764521,6.6094,153.97,153.91,0.12549]
[1724460764924,6.6094,153.97,153.91,1.42472559]
[1724460765123,6.6094,153.97,153.93,32.64195676]
[1724460765334,6.6094,153.97,153.94,46.42443283]
[1724460765510,6.6094,153.97,153.94,45.12549]
[1724460767038,16.2317,153.99,153.95,1.29893316]
[1724460768428,16.2317,153.99,153.95,1.29892584]
[1724460770273,6.6094,154.01,153.96,0.12549]
[1724460770454,6.6094,154.01,153.96,45.12549]
[1724460770757,1.62350452,154.0,153.86,55.8942]
[1724460770931,39.25135676,154.01,153.88,32.64195676]
[1724460771128,32.64195676,153.99,153.89,21.29934069]
[1724460771326,32.64195676,153.99,153.9,1.29934069]
[1724460771533,6.6094,153.96,153.83,6.79107203]
[1724460771740,6.6094,153.96,153.85,32.64195676]
[1724460771741,1.62432124,153.95,153.85,32.64195676]
[1724460772138,6.6094,153.96,153.87,32.64195676]
[1724460772335,6.6094,153.96,153.88,1.29934331]
[1724460773350,6.6094,153.96,153.89,40.80458936]
[1724460773653,6.6094,153.96,153.9,46.29921145]
[1724460773858,6.6094,153.96,153.91,0.12549]
[1724460774072,6.6094,153.96,153.91,1.42469676]
[1724460775287,6.6094,153.96,153.91,21.42469676]
[1724460775453,6.6094,153.96,153.92,45.0]
[1724460775657,6.6094,153.96,153.93,1.42459402]
[1724460778055,6.6094,153.96,153.93,0.12549]
[1724460778778,6.6094,153.96,153.93,1.42462414]
[1724460780980,6.6094,153.96,153.93,0.12549]
[1724460781875,6.6094,153.96,153.93,1.42455586]
[1724460782805,22.3047,154.0,153.93,61.97816522]
[1724460783017,22.3047,154.0,153.94,45.12549]
[1724460783307,22.3047,154.0,153.95,0.12549]
[1724460786909,22.3047,154.0,153.95,0.12549]
[1724460787837,1.62352752,153.99,153.93,20.0]
[1724460788003,1.62352752,153.99,153.89,40.55360936]
[1724460788202,1.62385262,153.98,153.89,40.55360936]
[1724460789345,1.62385262,153.98,153.9,20.0]
[1724460790343,1.62392923,153.99,153.91,45.0]
[1724460790533,1.62391866,153.98,153.92,0.12549]
[1724460791743,1.62391871,153.99,153.92,0.12549]
[1724460792036,1.62391882,153.98,153.92,0.12549]
[1724460792925,1.62391892,153.99,153.92,0.12549]
[1724460793123,1.62391898,153.98,153.92,0.12549]
[1724460793508,22.3047,154.0,153.92,1.42462518]
[1724460793707,22.3047,154.0,153.92,21.42462518]
[1724460793939,22.3047,154.0,153.93,45.0]
[1724460794141,22.3047,154.0,153.94,0.12549]
[1724460794519,1.62377084,153.99,153.94,0.12549]
[1724460794719,1.62388101,153.98,153.93,45.0]
[1724460794920,1.62388101,153.98,153.9,32.43137649]
[1724460795151,1.62388101,153.98,153.91,20.0]
[1724460795525,22.3047,154.0,153.91,21.29922583]
[1724460796250,22.3047,154.0,153.92,45.12549]
[1724460796549,22.3047,154.0,153.93,1.29922538]
[1724460796760,22.3047,154.0,153.94,32.55686649]
[1724460796950,22.3047,154.0,153.95,1.29897329]
[1724460797540,22.3047,154.0,153.94,33.8558315]
[1724460797740,22.3047,154.0,153.94,32.55686649]
[1724460798041,1.62375902,153.99,153.94,0.12549]
[1724460798227,1.62388416,153.98,153.92,45.0]
[1724460798637,1.62388416,153.98,153.91,45.0]
[1724460800155,6.6075,153.94,153.83,6.78942333]
[1724460800333,1.62466556,153.93,153.82,32.43137649]
[1724460800655,1.62461243,153.92,153.84,32.43137649]
[1724460801636,16.6109,153.91,153.84,32.43137649]
[1724460801937,18.23568253,153.91,153.84,32.43137649]
[1724460802851,18.23568253,153.91,153.85,0.12549]
[1724460803045,1.62471283,153.9,153.85,0.12549]
[1724460803348,6.6075,153.88,153.82,32.43137649]
[1724460803550,6.6075,153.88,153.8,32.43137649]
[1724460804060,1.62489447,153.87,153.8,32.43137649]
[1724460805275,8.23261736,153.88,153.8,32.43137649]
[1724460805463,6.6075,153.88,153.8,32.43137649]
[1724460806186,6.6075,153.88,153.82,32.43137649]
[1724460806357,6.6075,153.88,153.83,45.25098]
[1724460807773,18.23564728,153.87,153.79,7.61280184]
[1724460808075,18.23564728,153.87,153.79,0.8204954]
[1724460809477,50.66702377,153.87,153.79,0.8204954]
[1724460810084,49.04227649,153.87,153.79,0.8204954]
[1724460810443,1.62535887,153.86,153.79,0.8204954]
[1724460810672,49.04227649,153.87,153.79,0.8204954]
[1724460810882,16.6109,153.87,153.79,0.8204954]
[1724460811060,16.6109,153.87,153.79,2.12079115]
[1724460811376,16.6109,153.87,153.79,20.8204954]
[1724460811377,1.6253706,153.86,153.79,20.8204954]
[1724460811558,18.23594721,153.87,153.8,45.12549]
[1724460812856,18.23594721,153.87,153.79,0.8204954]
[1724460813381,57.1663237,153.87,153.79,0.8204954]
[1724460813571,6.6075,153.86,153.79,0.8204954]
[1724460813769,16.6109,153.84,153.79,0.8204954]
[1724460813973,23.2184,153.81,153.62,15.7228]
[1724460814281,55.64977649,153.77,153.65,32.43137649]
[1724460814483,1.62662517,153.76,153.65,32.43137649]
[1724460815445,39.03887649,153.75,153.63,33.25187189]
[1724460815650,1.62676321,153.74,153.63,33.25187189]
[1724460815884,1.6267589,153.73,153.65,32.43137649]
[1724460818454,1.6267589,153.73,153.63,41.50235198]
[1724460818654,1.6267589,153.73,153.64,20.25098]
[1724460818875,1.6267589,153.73,153.64,65.25098]
[1724460819481,8.23420145,153.75,153.65,40.68185658]
[1724460819675,8.23420145,153.75,153.67,40.68185658]
[1724460819880,8.23420145,153.75,153.68,65.12549]
[1724460822191,6.6075,153.75,153.68,65.12549]
[1724460822493,6.6075,153.75,153.69,40.80734658]
[1724460822702,6.6075,153.75,153.7,65.12549]
[1724460822990,6.6075,153.75,153.71,0.12549]
[1724460825761,6.6075,153.75,153.71,40.80734658]
[1724460825966,6.6075,153.75,153.72,45.12549]
[1724460827390,16.6109,153.77,153.73,40.80734658]
[1724460827603,16.6109,153.77,153.74,65.12549]
[1724460831308,1.62574107,153.85,153.74,65.12549]
[1724460831476,21.415,153.84,153.77,40.68185658]
[1724460831810,1.6254227,153.83,153.78,65.12549]
[1724460832281,21.415,153.84,153.74,45.0]
[1724460832282,1.62542279,153.82,153.74,45.0]
[1724460832483,1.62542279,153.82,153.75,20.25098]
[1724460832685,1.62542279,153.82,153.76,45.0]
[1724460836399,21.415,153.84,153.76,45.0]
[1724460836574,1.34076327,153.83,153.75,20.12549]
[1724460836780,1.34076327,153.82,153.73,20.12549]
[1724460836981,1.34076327,153.82,153.74,45.0]
[1724460837804,1.34076327,153.82,153.75,0.12549]
[1724460840483,1.34076327,153.82,153.75,32.62239546]
[1724460840787,1.34076327,153.83,153.77,32.49690546]
[1724460841499,1.34076327,153.83,153.78,45.12549]
[1724460842304,1.34076327,153.82,153.77,32.49690546]
[1724460842789,1.34076327,153.82,153.76,0.12549]
[1724460843109,1.34076327,153.83,153.76,65.12549]
[1724460843305,1.34076327,153.82,153.76,65.12549]
[1724460844306,1.34076327,153.82,153.73,32.49690546]
[1724460844609,1.34076327,153.82,153.74,65.12549]
[1724460846683,1.34076327,153.82,153.74,45.12549]
[1724460846888,6.2286,153.81,153.74,45.12549]
[1724460847099,1.34076327,153.8,153.74,45.12549]
[1724460847301,1.34076327,153.79,153.74,0.12549]
[1724460847913,1.34076327,153.79,153.73,32.49690546]
[1724460848217,15.8576,153.78,153.73,32.49690546]
[1724460848403,1.34076327,153.77,153.73,32.49690546]
[1724460849593,1.34076327,153.77,153.72,0.12549]
[1724460849797,1.34076327,153.77,153.72,65.12549]
[1724460850830,15.8576,153.78,153.72,20.0]
[1724460850831,1.34076327,153.76,153.72,20.0]
[1724460851196,1.34076327,153.77,153.72,20.0]
[1724460851424,1.34076327,153.76,153.72,20.0]
[1724460852001,6.2286,153.75,153.69,32.49690546]
[1724460852203,1.34076327,153.74,153.7,20.0]
[1724460855714,1.34076327,153.74,153.69,32.49690546]
[1724460857600,7.56936327,153.75,153.69,32.49690546]
[1724460858910,6.2286,153.75,153.69,32.49690546]
[1724460859615,1.34076327,153.74,153.69,32.49690546]
[1724460863828,1.34076327,153.74,153.7,20.0]
[1724460864423,1.34076327,153.73,153.68,0.12549]
[1724460864631,16.0263,153.72,153.65,32.49690546]
[1724460864815,1.34076327,153.71,153.63,33.31740086]
[1724460865011,1.34076327,153.7,153.63,33.31740086]
[1724460865922,1.34076327,153.71,153.63,33.31740086]
[1724460866441,1.34076327,153.7,153.63,33.31740086]
[1724460866839,1.34076327,153.7,153.64,20.0]
[1724460867339,1.34076327,153.71,153.64,20.0]
[1724460867517,1.34076327,153.7,153.65,45.12549]
[1724460868028,6.3514,153.69,153.65,45.12549]
[1724460868637,1.34076327,153.68,153.65,45.12549]
[1724460869141,1.34076327,153.68,153.64,45.0]
[1724460869437,1.34076327,153.68,153.63,33.31740086]
[1724460869438,16.0263,153.67,153.63,0.8204954]
[1724460869614,1.34076327,153.66,153.63,0.8204954]
[1724460871254,30.0,153.65,153.63,0.8204954]
[1724460871547,1.34076327,153.64,153.63,0.8204954]
[1724460872110,31.34076327,153.64,153.63,0.8204954]
[1724460872340,30.0,153.64,153.63,0.8204954]
[1724460875230,6.3514,153.64,153.63,0.8204954]
[1724460875419,7.69216327,153.64,153.63,0.8204954]
[1724460876244,37.69216327,153.64,153.63,0.8204954]
[1724460876408,7.69216327,153.64,153.63,0.8204954]
[1724460876614,6.3514,153.64,153.63,0.8204954]
[1724460881926,1.34076327,153.66,153.63,0.8204954]
[1724460886049,16.0263,153.67,153.63,33.31740086]
[1724460886419,6.3795,153.68,153.63,33.31740086]
[1724460886646,16.3018,153.71,153.65,32.49690546]
[1724460886945,1.34076327,153.7,153.65,32.49690546]
[1724460887138,1.34076327,153.7,153.64,45.12549]
[1724460887840,1.34076327,153.7,153.63,0.8204954]
[1724460888144,1.34076327,153.7,153.63,45.8204954]
[1724460892934,1.34076327,153.7,153.63,0.8204954]
[1724460897851,6.0006,153.69,153.63,0.8204954]
[1724460898059,16.5087,153.67,153.63,0.8204954]
[1724460898256,33.83766873,153.66,153.63,0.8204954]
[1724460898748,6.0006,153.65,153.63,0.8204954]
[1724460898939,1.34076327,153.64,153.63,0.8204954]
[1724460900466,50.34636873,153.64,153.52,32.49690546]
[1724460900764,16.5087,153.61,153.5,32.49690546]
[1724460900929,1.34076327,153.6,153.5,32.49690546]
[1724460901337,7.85126327,153.6,153.5,32.49690546]
[1724460901525,6.0006,153.58,153.48,287.11740086]
[1724460901728,1.34076327,153.57,153.48,287.11740086]
[1724460901927,1.34076327,153.57,153.48,33.31740086]
[1724460902740,1.34076327,153.57,153.49,20.0]
[1724460903944,6.0006,153.58,153.49,20.0]
[1724460904841,1.34076327,153.57,153.49,20.0]
[1724460905049,6.0006,153.58,153.5,46.42822614]
[1724460905349,1.34076327,153.57,153.5,45.12549]
[1724460905551,6.0006,153.58,153.5,46.42822712]
[1724460905945,1.34076327,153.57,153.5,77.62239546]
[1724460906145,6.0006,153.58,153.51,1.30264156]
[1724460906365,6.0006,153.58,153.5,77.62239546]
[1724460906577,37.08246327,153.65,153.56,32.49690546]
[1724460906578,22.5093,153.65,153.56,32.49690546]
[1724460906865,22.5093,153.65,153.57,97.62239546]
[1724460907049,22.5093,153.65,153.52,48.32480546]
[1724460907050,22.5093,153.65,153.55,32.49690546]
[1724460907233,22.5093,153.65,153.56,20.0]
[1724460907962,22.5093,153.65,153.57,77.62239546]
[1724460910040,22.5093,153.65,153.58,1.30215687]
[1724460910244,22.5093,153.65,153.57,77.62239546]
[1724460910446,22.5093,153.65,153.59,32.49690546]
[1724460911945,22.5093,153.65,153.6,45.12549]
[1724460912145,22.5093,153.7,153.61,32.49690546]
[1724460912342,22.5093,153.7,153.63,32.49690546]
[1724460912994,1.34076327,153.69,153.63,32.49690546]
[1724460913282,1.34076327,153.69,153.64,45.0]
[1724460914272,1.34076327,153.69,153.63,32.62239546]
[1724460914576,1.34076327,153.69,153.63,32.49690546]
[1724460914755,1.34076327,153.69,153.61,32.49690546]
[1724460915074,1.34076327,153.69,153.62,65.0]
[1724460915283,1.34076327,153.69,153.59,32.49690546]
[1724460915462,0.25098,153.68,153.57,32.49690546]
[1724460915649,1.34076327,153.67,153.57,32.49690546]
[1724460916087,6.0006,153.66,153.57,32.49690546]
[1724460916388,1.34076327,153.65,153.57,32.49690546]
[1724460916556,6.0006,153.66,153.57,32.49690546]
[1724460916750,15.0538,153.64,153.57,32.49690546]
[1724460916953,1.34076327,153.63,153.57,32.49690546]
[1724460918678,15.0538,153.64,153.57,32.49690546]
[1724460918986,1.34076327,153.63,153.57,32.49690546]
[1724460919556,16.39456327,153.64,153.57,32.49690546]
[1724460919751,16.39456327,153.64,153.59,32.49690546]
[1724460919963,15.0538,153.64,153.59,32.49690546]
[1724460920552,6.0006,153.66,153.61,32.49690546]
[1724460920780,7.34136327,153.66,153.62,45.0]
[1724460921490,7.34136327,153.66,153.61,32.49690546]
[1724460922387,6.0006,153.66,153.61,32.49690546]
[1724460922576,6.0006,153.66,153.62,45.12549]
[1724460924393,6.0006,153.66,153.63,32.49690546]
[1724460925580,21.6164,153.71,153.64,0.12549]
[1724460925785,21.6164,153.71,153.67,32.49690546]
[1724460927796,21.6164,153.71,153.69,32.49690546]
[1724460928012,6.5626,153.71,153.69,32.49690546]
[1724460928177,21.6164,153.75,153.69,32.49690546]
[1724460928378,21.6164,153.75,153.71,32.49690546]
[1724460929173,21.6164,153.75,153.73,32.49690546]
[1724460929401,21.6164,153.79,153.73,32.49690546]
[1724460930680,1.34076327,153.78,153.75,32.49690546]
[1724460931910,1.34076327,153.78,153.73,32.49690546]
[1724460932891,1.34076327,153.78,153.71,32.49690546]
[1724460933096,1.34076327,153.78,153.72,20.0]
[1724460933295,1.34076327,153.78,153.7,20.0]
[1724460935187,21.6164,153.79,153.7,20.0]
[1724460937896,1.34076327,153.78,153.7,20.0]
[1724460938083,1.34076327,153.78,153.68,20.0]
[1724460938704,1.34076327,153.78,153.67,32.62239546]
[1724460938895,22.6889,153.77,153.67,32.49690546]
[1724460939097,1.46625327,153.76,153.65,32.49690546]
[1724460939504,1.34076327,153.76,153.65,32.49690546]
[1724460939711,22.6889,153.77,153.67,32.49690546]
[1724460939915,22.6889,153.77,153.69,32.49690546]
[1724460940488,22.6889,153.77,153.7,20.0]
[1724460940694,1.34076327,153.76,153.7,20.0]
[1724460940897,22.6889,153.77,153.71,32.49690546]
[1724460941503,22.6889,153.77,153.73,32.49690546]
[1724460941704,1.34076327,153.83,153.74,20.0]
[1724460941705,22.6889,153.82,153.74,20.0]
[1724460941901,22.6889,153.82,153.75,32.49690546]
[1724460942324,1.34076327,153.81,153.75,32.49690546]
[1724460942497,1.34076327,153.81,153.73,32.49690546]
[1724460942698,1.34076327,153.81,153.74,20.0]
[1724460942925,1.34076327,153.81,153.71,32.49690546]
[1724460943219,1.34076327,153.81,153.72,20.0]
[1724460944099,6.6312,153.79,153.72,20.0]
[1724460944302,16.0577,153.77,153.7,20.0]
[1724460944606,1.34076327,153.76,153.67,32.49690546]
[1724460945202,1.34076327,153.76,153.67,43.7475848]
[1724460946120,1.34076327,153.76,153.62,6.5169]
[1724460946121,1.34076327,153.76,153.69,32.49690546]
[1724460946320,1.34076327,153.75,153.7,20.0]
[1724460947524,1.34076327,153.76,153.7,20.0]
[1724460949932,16.0577,153.77,153.7,20.0]
[1724460950231,1.34076327,153.76,153.7,20.0]
[1724460952230,16.0577,153.77,153.7,20.0]
[1724460952425,1.34076327,153.76,153.7,20.0]
[1724460952627,1.34076327,153.76,153.67,32.49690546]
[1724460952827,1.34076327,153.76,153.65,32.49690546]
[1724460952828,6.6312,153.75,153.65,32.49690546]
[1724460953022,1.34076327,153.74,153.66,45.12549]
[1724460953330,1.34076327,153.73,153.66,45.12549]
[1724460954038,6.6312,153.75,153.66,45.12549]
[1724460954039,6.6312,153.75,153.67,32.49690546]
[1724460954202,1.34076327,153.74,153.68,20.0]
[1724460954420,1.34076327,153.73,153.68,20.0]
[1724460955336,6.6312,153.75,153.68,20.0]
[1724460956628,1.34076327,153.74,153.68,20.0]
[1724460960328,6.6312,153.75,153.71,32.49690546]
[1724460960655,6.6312,153.75,153.72,20.0]
[1724460962534,1.34076327,153.74,153.72,20.0]
[1724460962737,1.34076327,153.74,153.7,20.0]
[1724460963756,1.34076327,153.73,153.67,32.49690546]
[1724460963936,1.34076327,153.74,153.67,43.7475848]
[1724460964135,1.34076327,153.74,153.69,32.49690546]
[1724460964934,1.34076327,153.74,153.7,20.0]
[1724460965827,6.6312,153.75,153.7,20.0]
[1724460966033,6.6312,153.75,153.71,32.49690546]
[1724460966339,6.6312,153.75,153.73,32.49690546]
[1724460971954,6.6312,153.75,153.7,31.25067934]
[1724460972145,6.6312,153.75,153.72,32.49690546]
[1724460972731,1.34076327,153.74,153.7,20.0]
[1724460972927,1.34076327,153.73,153.66,32.49690546]
[1724460973338,6.6312,153.75,153.66,32.49690546]
[1724460974029,6.6312,153.75,153.68,32.49690546]
[1724460974251,1.34076327,153.74,153.68,32.49690546]
[1724460974554,1.34076327,153.73,153.68,32.49690546]
[1724460974930,6.6312,153.75,153.7,32.49690546]
[1724460975137,6.6312,153.75,153.72,32.49690546]
[1724460976656,16.0577,153.77,153.74,32.49690546]
[1724460978265,22.6961,153.82,153.74,32.49690546]
[1724460978562,1.34076327,153.81,153.76,32.49690546]
[1724460978743,1.34076327,153.81,153.77,20.0]
[1724460978949,22.6961,153.82,153.77,20.0]
[1724460979462,22.6961,153.82,153.78,32.49690546]
[1724460984886,22.6961,153.82,153.77,20.0]
[1724460985173,22.6961,153.82,153.76,32.49690546]
[1724460985388,22.6961,153.82,153.77,20.0]
[1724460986373,1.34076327,153.81,153.77,20.0]
[1724460986578,1.34076327,153.81,153.76,32.49690546]
[1724460986788,1.34076327,153.81,153.72,32.49690546]
[1724460986966,7.84236327,153.81,153.7,32.49690546]
[1724460987155,0.12549,153.8,153.7,32.49690546]
[1724460987357,1.34076327,153.79,153.7,32.49690546]
[1724460988181,16.1071,153.77,153.7,32.49690546]
[1724460988364,1.34076327,153.76,153.68,32.49690546]
[1724460990868,7.84446327,153.76,153.68,32.49690546]
[1724460991182,1.34076327,153.76,153.69,20.0]
[1724460991756,1.34076327,153.76,153.65,6.79956259]
[1724460991757,61.69730546,153.75,153.65,6.79956259]
[1724460991988,1.46625327,153.74,153.64,32.49690546]
[1724460992185,1.34076327,153.73,153.64,32.49690546]
[1724460993383,1.34076327,153.73,153.65,20.0]
[1724460995973,0.12549,153.74,153.66,1.30150109]
[1724460996279,22.6961,153.75,153.66,33.79840655]
[1724460997198,1.34076327,153.74,153.66,32.49690546]
[1724460997363,1.34076327,153.73,153.66,32.49690546]
[1724460998788,1.34076327,153.73,153.65,20.0]
[1724461001277,6.2782,153.72,153.64,32.49690546]
[1724461001472,1.34076327,153.71,153.64,32.49690546]
[1724461001686,1.34076327,153.7,153.64,32.49690546]
[1724461003105,6.2782,153.72,153.64,32.49690546]
[1724461003280,1.34076327,153.71,153.64,32.49690546]
[1724461003479,1.34076327,153.7,153.64,32.49690546]
[1724461003982,6.2782,153.72,153.66,32.49690546]
[1724461004384,1.34076327,153.71,153.66,32.49690546]
[1724461004785,1.34076327,153.7,153.64,32.49690546]
[1724461005101,15.4362,153.71,153.64,32.49690546]
[1724461005477,1.34076327,153.7,153.64,32.49690546]
[1724461006098,15.4362,153.71,153.64,32.49690546]
[1724461009192,16.77696327,153.71,153.65,0.12549]
[1724461009680,1.34076327,153.7,153.65,0.12549]
[1724461011288,1.34076327,153.7,153.64,32.49690546]
[1724461011478,1.34076327,153.7,153.62,32.49690546]
[1724461011694,1.34076327,153.7,153.63,65.12549]
[1724461012196,1.34076327,153.7,153.63,20.12549]
[1724461012498,7.84706327,153.7,153.6,32.49690546]
[1724461012800,6.2782,153.69,153.6,32.49690546]
[1724461012968,1.34076327,153.68,153.6,32.49690546]
[1724461013171,1.34076327,153.67,153.6,32.49690546]
[1724461013368,15.4362,153.66,153.58,39.29978004]
[1724461013603,1.34076327,153.65,153.58,32.49690546]
[1724461013777,1.34076327,153.64,153.56,41.77175151]
[1724461013978,6.2782,153.65,153.56,41.77175151]
[1724461014190,0.84076327,153.64,153.56,41.77175151]
[1724461014395,0.84076327,153.64,153.54,32.49690546]
[1724461015183,0.84076327,153.64,153.55,20.0]
[1724461016604,0.84076327,153.64,153.56,0.12549]
[1724461016989,0.84076327,153.64,153.55,20.0]
[1724461017189,15.2461,153.63,153.55,20.0]
[1724461017387,0.84076327,153.62,153.55,20.0]
[1724461017702,15.2461,153.63,153.56,1.30228672]
[1724461017898,15.2461,153.63,153.56,33.79919218]
[1724461018206,15.2461,153.63,153.57,20.0]
[1724461018406,0.84076327,153.62,153.57,20.0]
[1724461019183,15.2461,153.63,153.57,20.0]
[1724461019705,7.19816327,153.62,153.54,32.49690546]
[1724461019905,0.84076327,153.61,153.55,20.0]
[1724461020106,15.2461,153.6,153.5,39.30316885]
[1724461020284,0.84076327,153.59,153.5,32.49690546]
[1724461021587,0.84076327,153.59,153.52,32.49690546]
[1724461021899,15.2461,153.6,153.52,32.49690546]
[1724461022283,15.2461,153.6,153.53,20.0]
[1724461022910,0.84076327,153.59,153.52,32.49690546]
[1724461023390,15.2461,153.6,153.52,32.49690546]
[1724461024114,15.2461,153.6,153.54,32.49690546]
[1724461024281,15.2461,153.6,153.55,1.30233884]
[1724461024482,15.2461,153.6,153.56,32.49690546]
[1724461025206,15.2461,153.6,153.58,32.49690546]
[1724461025382,6.3574,153.62,153.58,32.49690546]
[1724461027797,0.84076327,153.61,153.52,41.25846845]
[1724461027986,0.84076327,153.6,153.52,32.49690546]
[1724461030808,6.3574,153.62,153.56,32.49690546]
[1724461033795,0.84076327,153.61,153.56,32.49690546]
[1724461033997,6.3574,153.62,153.56,32.49690546]
[1724461034329,6.3574,153.62,153.57,1.30217713]
[1724461034823,6.3574,153.62,153.56,32.49690546]
[1724461035429,0.84076327,153.61,153.55,0.12549]
[1724461035631,0.84076327,153.61,153.55,20.12549]
[1724461036128,6.3574,153.62,153.56,32.49690546]
[1724461036501,0.84076327,153.61,153.56,32.49690546]
[1724461036923,0.84076327,153.61,153.55,20.12549]
[1724461037423,0.84076327,153.61,153.55,20.0]
[1724461037624,6.4275,153.58,153.43,253.8]
[1724461037835,0.84076327,153.57,153.48,33.31740086]
[1724461038304,6.4275,153.58,153.48,33.31740086]
[1724461039023,7.26826327,153.58,153.5,32.49690546]
[1724461039202,7.26826327,153.58,153.51,20.0]
[1724461039399,0.84076327,153.57,153.51,20.0]
[1724461040133,0.84076327,153.57,153.52,0.12549]
[1724461040313,0.84076327,153.57,153.51,20.0]
[1724461040511,6.4275,153.58,153.51,20.0]
[1724461041140,7.26826327,153.58,153.51,20.0]
[1724461041313,0.84076327,153.57,153.51,20.0]
[1724461041511,6.4275,153.58,153.51,20.0]
[1724461041929,7.26826327,153.58,153.51,20.0]
[1724461042307,6.4275,153.58,153.51,20.0]
[1724461042533,6.4275,153.58,153.52,0.12549]
[1724461043536,0.84076327,153.57,153.51,20.0]
[1724461043841,0.84076327,153.57,153.49,20.0]
[1724461044008,0.84076327,153.57,153.5,45.12549]
[1724461044212,0.84076327,153.57,153.51,20.0]
[1724461045158,0.84076327,153.57,153.5,45.12549]
[1724461045359,6.4275,153.58,153.5,0.12549]
[1724461045655,0.84076327,153.57,153.5,20.12549]
[1724461045842,0.84076327,153.57,153.51,45.0]
[1724461046743,0.84076327,153.57,153.5,20.12549]
[1724461046938,0.84076327,153.57,153.5,0.12549]
[1724461047143,0.84076327,153.57,153.5,45.12549]
[1724461047444,0.84076327,153.57,153.5,0.12549]
[1724461047639,0.84076327,153.57,153.5,20.0]
[1724461050750,6.4275,153.58,153.5,20.0]
[1724461051054,0.84076327,153.57,153.5,20.0]
[1724461051637,6.4275,153.58,153.5,20.0]
[1724461051846,0.84076327,153.57,153.5,20.0]
[1724461052253,6.4275,153.58,153.51,1.3026457]
[1724461054048,6.4275,153.58,153.5,20.0]
[1724461055068,6.4275,153.58,153.51,1.30264287]
[1724461055357,0.84076327,153.57,153.5,20.0]
[1724461057061,6.4275,153.58,153.51,1.30265224]
[1724461057636,6.4275,153.58,153.5,20.0]
[1724461058266,0.84076327,153.57,153.5,20.0]
[1724461060155,6.392,153.55,153.48,0.8204954]
[1724461060467,0.84076327,153.54,153.48,0.8204954]
[1724461062067,6.392,153.55,153.48,0.8204954]
[1724461067474,7.23276327,153.55,153.48,0.8204954]
[1724461067683,0.84076327,153.54,153.48,0.8204954]
[1724461067970,6.392,153.55,153.48,0.8204954]
[1724461068371,7.23276327,153.55,153.48,0.8204954]
[1724461070477,15.066,153.53,153.48,0.8204954]
[1724461070667,7.39786327,153.52,153.48,0.8204954]